bitfinex/quotes_SOLUSD_20260211
["timestamp","ask_amount","ask_price","bid_price","bid_amount"]
[1770837521827,12.82288028,80.16,80.125,3.11169963]
[1770837521828,25.29807582,80.16,80.125,3.11169963]
[1770837522139,53.14,80.159,80.121,3.11169963]
[1770837523342,12.82288028,80.15,80.121,3.11169963]
[1770837523923,12.47676203,80.149,80.121,3.11169963]
[1770837524543,12.47676203,80.149,80.123,3.11169963]
[1770837525743,53.16,80.151,80.123,3.11169963]
[1770837525932,12.47660636,80.15,80.123,3.11169963]
[1770837526248,25.29948664,80.15,80.123,3.11169963]
[1770837527140,25.29948664,80.15,80.124,3.11169963]
[1770837529224,25.29948664,80.15,80.116,15.59350574]
[1770837529428,12.82288028,80.14,80.116,3.11169963]
[1770837530146,12.82288028,80.13,80.107,3.11169963]
[1770837530443,12.82288028,80.13,80.087,31.21569224]
[1770837530444,12.82288028,80.12,80.088,3.11169963]
[1770837530642,12.82288028,80.11,80.088,12.4862651]
[1770837530847,12.82288028,80.11,80.089,3.11169963]
[1770837531748,12.82288028,80.11,80.077,3.11169963]
[1770837531936,53.26,80.121,80.068,3.11169963]
[1770837531937,12.82288028,80.09,80.068,3.11169963]
[1770837532136,0.06544065,80.109,80.069,3.11169963]
[1770837532448,12.89017946,80.13,80.081,3.11169963]
[1770837532649,12.82288028,80.12,80.081,3.11169963]
[1770837533650,12.82288028,80.1,80.081,3.11169963]
[1770837533838,53.26,80.111,80.081,3.11169963]
[1770837534031,12.82288028,80.11,80.081,3.11169963]
[1770837534447,12.48299192,80.109,80.081,3.11169963]
[1770837534655,53.26,80.116,80.083,3.11169963]
[1770837534848,12.82288028,80.11,80.083,3.11169963]
[1770837535238,65.74197508,80.116,80.083,3.11169963]
[1770837535562,49.88131951,80.191,80.09,12.82288028]
[1770837535732,12.82288028,80.14,80.101,3.11169963]
[1770837536347,12.47831892,80.139,80.102,12.48408279]
[1770837536540,12.47831892,80.139,80.103,3.11169963]
[1770837537350,12.47831892,80.139,80.105,3.11169963]
[1770837537552,12.82288028,80.13,80.105,3.11169963]
[1770837537757,12.47831892,80.139,80.105,3.11169963]
[1770837539069,12.82288028,80.13,80.105,3.11169963]
[1770837539436,12.82288028,80.12,80.089,3.11169963]
[1770837539654,12.82288028,80.11,80.089,3.11169963]
[1770837540036,12.82288028,80.11,80.079,3.11169963]
[1770837540237,53.26,80.122,80.079,3.11169963]
[1770837540238,12.82288028,80.1,80.079,3.11169963]
[1770837540542,12.82288028,80.09,80.067,3.11169963]
[1770837540738,12.82288028,80.09,80.052,3.11169963]
[1770837541071,12.82288028,80.08,80.052,3.11169963]
[1770837541544,12.82288028,80.07,80.05,0.2]
[1770837543171,12.82288028,80.06,80.04,1e-08]
[1770837543547,12.48879519,80.072,80.042,3.11169963]
[1770837543844,12.82288028,80.07,80.044,3.11169963]
[1770837544362,12.48816581,80.076,80.044,3.11169963]
[1770837545066,12.82288028,80.07,80.044,3.11169963]
[1770837545270,12.82288028,80.07,80.041,3.11169963]
[1770837545758,12.48884933,80.072,80.043,3.11169963]
[1770837545938,12.48815487,80.076,80.043,3.11169963]
[1770837546335,12.48815487,80.076,80.04,1e-08]
[1770837546336,12.82288028,80.06,80.04,1e-08]
[1770837546757,12.82288028,80.05,80.04,1e-08]
[1770837546976,12.82288028,80.06,80.04,1e-08]
[1770837548063,43.71775814,80.059,80.04,1e-08]
[1770837548262,12.49078804,80.059,80.04,1e-08]
[1770837548462,12.82288028,80.05,80.04,1e-08]
[1770837548663,12.82288028,80.05,80.036,1e-08]
[1770837548870,12.87095067,80.05,80.036,1e-08]
[1770837549670,53.36,80.049,80.036,1e-08]
[1770837550159,53.38,80.048,80.036,1e-08]
[1770837550357,53.38,80.048,80.02,1e-08]
[1770837550546,12.87095067,80.03,80.02,1e-08]
[1770837550741,12.87095067,80.04,80.02,1e-08]
[1770837551362,53.4,80.039,80.02,3.15862545]
[1770837551564,12.49110009,80.057,80.022,3.15862544]
[1770837551753,12.87095067,80.06,80.022,3.15862544]
[1770837552163,12.49078804,80.059,80.024,3.15862544]
[1770837553766,12.87095067,80.05,80.024,3.15862544]
[1770837553950,66.31095067,80.05,80.024,3.15862544]
[1770837554260,12.49234843,80.049,80.024,3.15862544]
[1770837554452,12.87095067,80.04,80.02,1e-08]
[1770837554852,43.72321952,80.049,80.02,1e-08]
[1770837555051,53.44,80.048,80.022,3.15862544]
[1770837556168,12.49266056,80.047,80.022,3.15862544]
[1770837557669,53.44,80.048,80.023,12.49640728]
[1770837557855,53.5,80.05,80.024,3.15862544]
[1770837558550,53.5,80.05,80.026,3.15862544]
[1770837558959,12.49234843,80.049,80.026,3.15862544]
[1770837559666,12.49234843,80.049,80.02,1e-08]
[1770837560053,12.87095067,80.03,80.02,1e-08]
[1770837560754,66.03547039,80.029,80.01,0.2]
[1770837560951,12.87095067,80.02,80.01,0.2]
[1770837561367,53.54,80.025,80.01,3.35862544]
[1770837561567,53.54,80.025,80.01,0.2]
[1770837562167,12.87095067,80.02,80.0,0.2]
[1770837562548,12.49703195,80.019,79.992,3.15862544]
[1770837562747,12.87095067,80.01,79.973,3.15862545]
[1770837563872,12.87095067,80.0,79.973,3.15862545]
[1770837564254,12.87095067,79.99,79.973,3.15862545]
[1770837564655,12.50171898,79.989,79.973,3.15862545]
[1770837564864,4.64165595,80.028,79.97,3.35862545]
[1770837565075,12.87095067,80.01,79.972,3.15862545]
[1770837565270,12.87095067,79.99,79.972,3.15862545]
[1770837565577,12.87095067,79.99,79.97,0.2]
[1770837565775,12.87095067,79.99,79.97,3.35862545]
[1770837566074,53.56,80.0,79.97,3.35862545]
[1770837566075,66.43095067,80.0,79.971,3.15862545]
[1770837566259,53.56,79.999,79.971,3.15862545]
[1770837566981,12.5003125,79.998,79.971,3.15862545]
[1770837568067,66.0803125,79.998,79.971,3.15862545]
[1770837568469,66.0803125,79.998,79.973,3.15862545]
[1770837569175,12.87095067,79.98,79.96,0.2]
[1770837569364,12.87095067,79.98,79.961,3.15862545]
[1770837569562,12.87095067,79.99,79.961,3.15862545]
[1770837569768,12.87095067,79.99,79.962,3.15862545]
[1770837569973,53.6,79.997,79.962,3.15862545]
[1770837570160,66.10046876,79.997,79.962,3.15862545]
[1770837570367,12.50046876,79.997,79.962,3.15862545]
[1770837571185,66.49095067,80.0,79.964,3.15862545]
[1770837571379,12.50015625,79.999,79.964,3.15862545]
[1770837571574,12.50015625,79.999,79.96,0.2]
[1770837571575,12.87095067,79.99,79.96,0.2]
[1770837571772,12.87095067,79.98,79.961,3.15862545]
[1770837571970,53.64,79.979,79.961,3.15862545]
[1770837572370,53.64,79.978,79.961,3.15862545]
[1770837572769,12.87095067,79.97,79.96,0.2]
[1770837573083,53.64,79.978,79.96,0.2]
[1770837573258,12.50359478,79.977,79.96,0.2]
[1770837573968,66.14350027,79.978,79.961,3.15862545]
[1770837574171,31.25572225,79.986,79.961,3.15862545]
[1770837574172,12.50223469,79.986,79.961,3.15862545]
[1770837574477,53.68,79.994,79.961,3.15862545]
[1770837575278,12.87095067,79.99,79.961,3.15862545]
[1770837576279,12.87095067,79.99,79.96,0.2]
[1770837576280,12.87095067,79.98,79.96,0.2]
[1770837576585,0.03671518,79.989,79.96,3.35862545]
[1770837576879,12.87095067,79.98,79.96,0.2]
[1770837577567,12.50328211,79.979,79.96,0.2]
[1770837579266,12.50328211,79.979,79.96,3.35862545]
[1770837580088,12.50109384,79.993,79.962,3.15862545]
[1770837580271,12.87095067,79.99,79.962,3.15862545]
[1770837580588,53.76,79.989,79.962,3.15862545]
[1770837581585,0.04228109,80.023,79.963,12.50578392]
[1770837581765,12.49531425,80.03,79.971,3.15862545]
[1770837581766,12.87095067,80.01,79.971,3.15862545]
[1770837583082,12.87095067,80.0,79.971,3.15862545]
[1770837583283,53.78,79.999,79.971,3.15862545]
[1770837583679,12.5003125,79.998,79.971,3.15862545]
[1770837584187,12.87095067,79.99,79.965,15.66396663]
[1770837584383,12.87095067,79.99,79.965,3.15862545]
[1770837584796,12.91582691,79.98,79.96,0.2]
[1770837584972,53.78,79.979,79.96,0.2]
[1770837585695,12.87095067,79.97,79.96,0.2]
[1770837585988,12.50343844,79.978,79.96,0.2]
[1770837589696,43.76203455,79.978,79.939,3.15862545]
[1770837591182,12.50343844,79.978,79.941,3.15862545]
[1770837591888,53.98,79.977,79.941,3.15862545]
[1770837592389,12.50375112,79.976,79.943,3.15862545]
[1770837594200,12.50310648,79.981,79.951,3.15862545]
[1770837594700,12.87095067,79.98,79.952,3.15862545]
[1770837595096,12.50310648,79.981,79.952,3.15862545]
[1770837595604,12.87095067,79.98,79.952,3.15862545]
[1770837595791,12.50310648,79.981,79.952,3.15862545]
[1770837595995,12.92549138,80.01,79.961,3.15862545]
[1770837596180,54.02,80.009,79.971,3.15862545]
[1770837596376,97.76507867,80.009,79.971,3.15862545]
[1770837596581,12.87095067,80.0,79.971,3.15862545]
[1770837597088,12.50015625,79.999,79.971,3.15862545]
[1770837598702,12.87095067,79.98,79.96,3.15862545]
[1770837598897,54.06,79.98,79.96,3.15862545]
[1770837599397,54.06,79.98,79.961,3.15862545]
[1770837599599,54.06,79.988,79.961,3.15862545]
[1770837600700,12.50203158,79.987,79.963,3.15862545]
[1770837600887,12.87095067,79.98,79.963,3.15862545]
[1770837601385,12.87095067,79.98,79.954,3.15862545]
[1770837601998,0.0589742,79.969,79.932,3.15862545]
[1770837602209,43.75711053,79.987,79.924,3.15862545]
[1770837602210,12.87095067,79.95,79.924,3.15862545]
[1770837602509,12.87095067,79.96,79.931,3.15862545]
[1770837602701,49.99226658,80.013,79.931,3.15862545]
[1770837602913,12.87095067,79.97,79.933,3.15862545]
[1770837603086,12.87095067,79.97,79.93,12.97095067]
[1770837603087,12.87095067,79.95,79.93,0.1]
[1770837603288,12.87095067,79.94,79.93,0.1]
[1770837603488,12.87095067,79.94,79.917,3.15862545]
[1770837604013,12.87095067,79.93,79.881,3.18845503]
[1770837604303,12.87095067,79.91,79.88,0.1]
[1770837604604,12.51423494,79.909,79.88,3.28845503]
[1770837604809,12.51423494,79.909,79.881,3.18845503]
[1770837605406,12.87095067,79.9,79.881,3.18845503]
[1770837605613,12.51423494,79.909,79.881,3.18845503]
[1770837606511,12.51423494,79.909,79.882,3.18845503]
[1770837606709,66.61416414,79.91,79.884,3.18845503]
[1770837607001,79.48511481,79.91,79.88,0.1]
[1770837607205,12.87095067,79.9,79.88,0.1]
[1770837607509,12.87095067,79.89,79.88,0.1]
[1770837607695,12.87095067,79.9,79.88,0.1]
[1770837608005,54.14,79.905,79.866,3.18845503]
[1770837608204,12.87095067,79.89,79.866,3.18845503]
[1770837608698,12.87095067,79.88,79.86,0.2]
[1770837608900,12.92565953,79.88,79.86,0.2]
[1770837609105,12.92565953,79.88,79.86,3.38845503]
[1770837609297,12.92565953,79.89,79.86,3.38845503]
[1770837609502,12.92565953,79.89,79.861,3.18845503]
[1770837609893,54.16,79.898,79.861,12.52175655]
[1770837610087,54.16,79.898,79.862,3.18845503]
[1770837610287,12.51501802,79.904,79.862,3.18845503]
[1770837610494,12.92565953,79.88,79.86,0.2]
[1770837610710,12.92565953,79.88,79.86,3.38845503]
[1770837610905,12.92565953,79.89,79.86,3.38845503]
[1770837611101,5.36086188,79.915,79.86,3.38845503]
[1770837611102,12.51611449,79.897,79.862,3.18845503]
[1770837612496,12.92565953,79.9,79.861,12.52175655]
[1770837612497,66.67453003,79.908,79.871,3.18845503]
[1770837612812,12.51453003,79.908,79.881,3.18845503]
[1770837613396,12.51305977,79.917,79.881,3.18845503]
[1770837613595,12.92565953,79.94,79.901,3.18845503]
[1770837613910,12.92565953,79.95,79.911,3.18845503]
[1770837614417,54.18,79.954,79.921,3.18845503]
[1770837614598,12.50578392,79.963,79.931,3.18845503]
[1770837615006,12.92565953,79.95,79.922,3.18845503]
[1770837615228,12.92565953,79.96,79.922,3.18845503]
[1770837616292,12.92565953,79.95,79.922,3.18845503]
[1770837616512,43.77243336,79.959,79.922,3.18845503]
[1770837617112,12.92565953,79.95,79.913,3.18845503]
[1770837618229,12.50953852,79.939,79.913,3.18845503]
[1770837619916,12.50953852,79.939,79.914,3.18845503]
[1770837620419,12.50953852,79.939,79.896,47.34]
[1770837620420,31.26736229,79.956,79.921,3.18845503]
[1770837620614,12.92565953,79.95,79.921,3.18845503]
[1770837620810,12.92565953,79.93,79.896,12.51622522]
[1770837621020,12.92565953,79.93,79.897,3.18845503]
[1770837621514,12.92565953,79.92,79.881,3.18845503]
[1770837621716,12.92565953,79.9,79.871,3.18845503]
[1770837622117,12.92565953,79.89,79.861,3.18845503]
[1770837622314,43.82175812,79.869,79.828,15.7152865]
[1770837622523,12.92565953,79.85,79.828,3.18845503]
[1770837622718,12.92565953,79.86,79.828,3.18845503]
[1770837624098,12.52050232,79.869,79.84,3.38845503]
[1770837624324,12.51893488,79.879,79.842,3.18845503]
[1770837624630,12.92565953,79.87,79.844,3.18845503]
[1770837625325,12.92565953,79.87,79.84,0.2]
[1770837625508,12.92565953,79.86,79.84,0.2]
[1770837626028,43.8162721,79.879,79.841,3.18845503]
[1770837626029,12.92565953,79.87,79.841,3.18845503]
[1770837626204,43.8162721,79.879,79.841,3.18845503]
[1770837626401,12.92565953,79.86,79.84,0.2]
[1770837626802,12.92565953,79.85,79.84,0.2]
[1770837627011,54.14,79.868,79.84,0.2]
[1770837627012,12.92565953,79.86,79.84,0.2]
[1770837628203,12.92565953,79.85,79.84,0.2]
[1770837628434,12.92565953,79.85,79.83,0.2]
[1770837628815,12.92565953,79.86,79.83,0.2]
[1770837629125,12.92565953,79.85,79.83,0.2]
[1770837630001,12.92565953,79.84,79.808,3.18845503]
[1770837630612,12.52520697,79.839,79.808,3.18845503]
[1770837630815,12.52520697,79.839,79.81,3.18845503]
[1770837631015,50.06797571,79.892,79.811,3.18845503]
[1770837631016,4.61729252,79.87,79.811,3.18845503]
[1770837631222,12.92565953,79.85,79.811,3.18845503]
[1770837631424,12.92565953,79.84,79.811,3.18845503]
[1770837631828,4.61729252,79.866,79.811,3.18845503]
[1770837631829,12.92565953,79.85,79.811,3.18845503]
[1770837632328,12.92565953,79.86,79.821,3.18845503]
[1770837632505,12.92565953,79.85,79.821,3.18845503]
[1770837633434,12.52363836,79.849,79.821,3.18845503]
[1770837633737,12.92565953,79.84,79.821,3.18845503]
[1770837634110,12.92565953,79.84,79.799,31.32864235]
[1770837634111,12.92565953,79.83,79.791,3.18845503]
[1770837634827,112.70377835,79.856,79.79,12.92565953]
[1770837634828,51.70263812,79.98,79.793,4.61729252]
[1770837635053,12.92565953,79.88,79.841,3.18845503]
[1770837635443,12.51893488,79.879,79.841,3.18845503]
[1770837635809,12.92565953,79.86,79.821,3.18845503]
[1770837636011,12.92565953,79.87,79.831,3.18845503]
[1770837636442,12.92565953,79.87,79.832,3.18845503]
[1770837637312,12.92565953,79.86,79.817,3.18845503]
[1770837637512,43.83273427,79.849,79.811,3.18845503]
[1770837637805,5.36086188,79.874,79.765,50.14670341]
[1770837637806,12.52298867,79.854,79.821,3.18845503]
[1770837638739,12.52298867,79.854,79.831,3.18845503]
[1770837639537,31.30168094,79.868,79.831,3.18845503]
[1770837640046,12.92565953,79.86,79.82,12.92565953]
[1770837640635,12.92565953,79.86,79.821,3.18845503]
[1770837641131,12.92565953,79.86,79.82,12.92565953]
[1770837641341,12.92565953,79.86,79.821,3.18845503]
[1770837642414,43.82724551,79.859,79.821,3.18845503]
[1770837644316,43.82724551,79.859,79.823,3.18845503]
[1770837646233,43.82724551,79.859,79.825,3.18845503]
[1770837646443,12.52207014,79.859,79.831,3.18845503]
[1770837647037,12.52035641,79.87,79.85,12.92565953]
[1770837647219,12.52035641,79.87,79.848,3.18845503]
[1770837647615,12.92565953,79.87,79.838,3.18845503]
[1770837648016,43.81647998,79.879,79.841,3.18845503]
[1770837648228,43.81647998,79.879,79.84,12.92565953]
[1770837648428,54.18,79.878,79.84,12.92565953]
[1770837649431,54.18,79.878,79.84,16.11411456]
[1770837649633,43.8173692,79.877,79.84,16.11411456]
[1770837649821,43.8173692,79.877,79.841,3.18845503]
[1770837650222,54.26,79.876,79.851,3.18845503]
[1770837650935,62.57905897,79.899,79.841,12.52489322]
[1770837650936,50.04128405,79.934,79.861,3.18845503]
[1770837651139,12.92565953,79.92,79.881,3.18845503]
[1770837651339,156.37901266,79.934,79.841,106.4615924]
[1770837651340,12.92565953,79.91,79.87,12.92565953]
[1770837651641,12.51423494,79.909,79.872,3.18845503]
[1770837652045,43.79982229,79.909,79.872,3.18845503]
[1770837653239,12.92565953,79.89,79.851,3.18845503]
[1770837653426,12.92565953,79.88,79.841,3.18845503]
[1770837653747,12.92565953,79.87,79.841,3.18845503]
[1770837654038,54.32,79.869,79.831,3.18845503]
[1770837654430,54.32,79.868,79.831,3.18845503]
[1770837654940,54.32,79.868,79.841,3.18845503]
[1770837656638,43.82285549,79.867,79.832,3.18845503]
[1770837656955,12.52081585,79.867,79.832,3.18845503]
[1770837657118,12.52081585,79.867,79.831,12.52646215]
[1770837657119,54.38,79.866,79.841,3.18845503]
[1770837657523,54.38,79.866,79.832,3.18845503]
[1770837657824,12.92565953,79.86,79.832,3.18845503]
[1770837658027,54.4,79.859,79.832,3.18845503]
[1770837658541,54.4,79.858,79.832,3.18845503]
[1770837658738,54.4,79.858,79.841,3.18845503]
[1770837658925,54.4,79.861,79.841,3.18845503]
[1770837659533,54.42,79.867,79.851,3.18845503]
[1770837659731,54.42,79.872,79.851,3.18845503]
[1770837660849,45.02468561,79.872,79.861,3.08507858]
[1770837661031,12.5154612,79.902,79.861,3.08507858]
[1770837661231,2.88679744,79.901,79.87,16.01073811]
[1770837662028,2.88679744,79.901,79.87,12.92565953]
[1770837662345,12.5154612,79.902,79.88,12.92565953]
[1770837662928,12.51470477,79.906,79.881,12.51862144]
[1770837663141,54.42,79.907,79.881,12.51862144]
[1770837663142,54.42,79.907,79.89,12.92565953]
[1770837664958,2.88679744,79.916,79.89,12.92565953]
[1770837665137,2.88679744,79.914,79.89,12.92565953]
[1770837666048,15.40040598,79.913,79.89,12.92565953]
[1770837666238,12.51201756,79.924,79.901,3.08507858]
[1770837666858,2.88679744,79.923,79.89,25.44274387]
[1770837667160,2.88679744,79.923,79.9,12.92565953]
[1770837667358,2.88679744,79.923,79.891,3.08507858]
[1770837667733,2.88679744,79.923,79.9,12.92565953]
[1770837668331,2.88679744,79.921,79.892,12.51689781]
[1770837668751,2.88679744,79.921,79.9,12.92565953]
[1770837669462,2.88679744,79.956,79.911,3.08507858]
[1770837669758,12.50656594,79.958,79.92,12.92565953]
[1770837669759,2.88679744,79.951,79.92,12.92565953]
[1770837669951,54.5,79.952,79.93,12.92565953]
[1770837670150,54.5,79.952,79.94,12.92565953]
[1770837670348,54.5,79.952,79.93,12.92565953]
[1770837670650,2.88679744,79.95,79.921,12.51235595]
[1770837671257,2.88679744,79.95,79.93,12.89945654]
[1770837671641,0.2,79.96,79.941,3.08507858]
[1770837671956,0.2,79.96,79.95,12.89945654]
[1770837672156,54.52,79.969,79.95,12.89945654]
[1770837673655,2.88679744,79.967,79.94,12.89945654]
[1770837674658,2.88679744,79.967,79.95,12.89945654]
[1770837674856,54.52,79.969,79.95,12.89945654]
[1770837675557,12.505002,79.968,79.95,12.89945654]
[1770837675961,2.88679744,79.967,79.94,12.89945654]
[1770837676740,2.88679744,79.965,79.94,12.89945654]
[1770837678461,2.88679744,79.963,79.94,12.89945654]
[1770837678848,2.88679744,79.963,79.93,25.4102585]
[1770837679051,2.88679744,79.963,79.94,12.89945654]
[1770837679765,15.39273776,79.962,79.94,12.89945654]
[1770837680257,2.88679744,79.961,79.94,12.89945654]
[1770837681943,12.50625312,79.96,79.94,12.89945654]
[1770837682262,3.05287284,79.959,79.94,12.89945654]
[1770837682759,3.05287284,79.949,79.89,12.89945654]
[1770837682968,3.05287284,79.919,79.875,2.88482702]
[1770837683146,3.05287284,79.917,79.88,12.89945654]
[1770837683548,3.05287284,79.917,79.89,12.89945654]
[1770837684143,5.36086188,79.948,79.861,33.58]
[1770837684144,12.51047752,79.933,79.9,12.89945654]
[1770837684464,12.51047752,79.933,79.891,15.4018815]
[1770837684465,3.05287284,79.919,79.891,2.88482702]
[1770837684646,3.05287284,79.929,79.9,12.89945654]
[1770837684845,3.05287284,79.919,79.891,2.88482702]
[1770837685167,3.05287284,79.909,79.891,2.88482702]
[1770837685862,3.05287284,79.909,79.882,12.51843515]
[1770837686060,3.05287284,79.907,79.878,12.51907097]
[1770837686264,3.05287284,79.899,79.868,2.88482702]
[1770837686643,3.05287284,79.899,79.861,12.52175655]
[1770837686840,3.05287284,79.899,79.861,15.40658357]
[1770837687063,3.05287284,79.899,79.87,12.89945654]
[1770837687649,2.88151365,79.908,79.871,2.87746718]
[1770837688247,2.88151365,79.908,79.881,2.87746718]
[1770837688651,54.64,79.913,79.881,2.87746718]
[1770837688963,2.88151365,79.917,79.891,2.87746718]
[1770837689165,54.64,79.922,79.891,2.87746718]
[1770837689166,12.51235595,79.921,79.891,2.87746718]
[1770837689374,15.3938696,79.921,79.891,2.87746718]
[1770837689544,2.88151365,79.92,79.891,2.87746718]
[1770837689743,2.88151365,79.909,79.867,12.52080346]
[1770837690056,2.88151365,79.899,79.867,12.52080346]
[1770837690256,2.88151365,79.897,79.867,12.52080346]
[1770837690567,21.56,79.896,79.87,12.89945654]
[1770837690762,2.88151365,79.895,79.86,12.89945654]
[1770837690964,2.88151365,79.879,79.847,2.87746718]
[1770837691364,2.88151365,79.869,79.82,12.89945654]
[1770837691559,2.88151365,79.867,79.821,2.87746718]
[1770837691870,2.88151365,79.867,79.831,2.87746718]
[1770837692073,54.66,79.867,79.841,2.87746718]
[1770837692366,2.88151365,79.881,79.85,12.89945654]
[1770837692667,2.88151365,79.881,79.851,12.52332469]
[1770837694258,2.88151365,79.881,79.853,12.52301103]
[1770837694470,2.88151365,79.879,79.843,2.87746718]
[1770837694879,2.88151365,79.879,79.85,12.89945654]
[1770837695101,2.88151365,79.879,79.843,2.87746718]
[1770837695379,2.88151365,79.879,79.85,12.89945654]
[1770837695962,2.88151365,79.879,79.851,2.87746718]
[1770837696494,2.88151365,79.879,79.852,12.52316786]
[1770837696659,2.88151365,79.889,79.86,12.89945654]
[1770837696974,2.88151365,79.889,79.861,2.87746718]
[1770837697274,2.88151365,79.897,79.861,2.87746718]
[1770837697473,54.74,79.901,79.88,12.89945654]
[1770837698067,12.5151774,79.903,79.88,12.89945654]
[1770837698264,12.5151774,79.903,79.852,43.83108751]
[1770837698265,3.13610213,79.923,79.89,12.89945654]
[1770837698680,3.13610213,79.921,79.891,12.51705448]
[1770837701159,3.13610213,79.919,79.869,43.82175812]
[1770837701472,3.13610213,79.919,79.89,12.89945654]
[1770837701877,3.13610213,79.919,79.88,12.89945654]
[1770837702878,3.13610213,79.917,79.881,12.51862144]
[1770837703280,3.13610213,79.909,79.871,12.5201888]
[1770837704363,43.79488975,79.918,79.89,12.89945654]
[1770837704364,3.13610213,79.917,79.89,12.89945654]
[1770837704987,3.13610213,79.917,79.89,25.41651361]
[1770837705463,3.13610213,79.909,79.871,46.48]
[1770837705660,3.13610213,79.907,79.87,12.89945654]
[1770837705861,3.13610213,79.907,79.87,25.41971638]
[1770837707587,3.13610213,79.905,79.87,25.41971638]
[1770837709588,3.13610213,79.903,79.87,56.72058028]
[1770837710111,3.13610213,79.903,79.88,12.89945654]
[1770837712697,3.13610213,79.899,79.86,12.52191334]
[1770837712873,12.51533128,79.902,79.86,12.52191334]
[1770837712874,3.13610213,79.889,79.86,12.52191334]
[1770837713276,3.13610213,79.889,79.86,25.42136988]
[1770837714682,3.13610213,79.879,79.841,12.52489322]
[1770837714988,3.13610213,79.859,79.826,12.52724676]
[1770837715485,3.13610213,79.859,79.83,12.89945654]
[1770837715790,43.81133586,79.888,79.826,12.52724676]
[1770837715791,3.13610213,79.875,79.831,0.03755436]
[1770837715969,12.51752453,79.888,79.85,12.89945654]
[1770837715970,3.13610213,79.882,79.85,12.89945654]
[1770837716166,3.13610213,79.893,79.86,12.89945654]
[1770837716403,3.13610213,79.903,79.87,12.89945654]
[1770837716784,12.51533128,79.902,79.88,12.89945654]
[1770837716973,3.13610213,79.901,79.871,12.5201888]
[1770837719086,3.13610213,79.899,79.871,12.5201888]
[1770837720995,3.13610213,79.897,79.86,12.89945654]
[1770837721185,43.80585245,79.898,79.84,12.89945654]
[1770837721186,3.13610213,79.879,79.84,12.89945654]
[1770837721377,3.13610213,79.898,79.861,0.04779057]
[1770837721579,3.13610213,79.898,79.87,12.89945654]
[1770837722494,12.51496914,79.905,79.88,12.89945654]
[1770837722999,70.55037173,79.909,79.88,12.89945654]
[1770837723207,58.03610213,79.909,79.881,12.51862144]
[1770837723874,12.51439155,79.908,79.881,12.51862144]
[1770837724275,58.03610213,79.909,79.881,12.51862144]
[1770837724611,3.13610213,79.909,79.881,12.51862144]
[1770837724978,3.13610213,79.908,79.881,12.51862144]
[1770837728587,3.13610213,79.906,79.881,12.51862144]
[1770837729996,3.13610213,79.904,79.881,12.51862144]
[1770837735209,3.13610213,79.919,79.891,0.0676151]
[1770837735409,50.01115023,79.983,79.911,0.0676151]
[1770837735410,12.50875612,79.944,79.911,0.0676151]
[1770837735714,3.13610213,79.943,79.911,0.0676151]
[1770837736506,3.13610213,79.943,79.91,12.91326292]
[1770837736713,3.13610213,79.968,79.932,0.07034489]
[1770837737009,3.13610213,79.966,79.94,12.91326292]
[1770837738099,3.13610213,79.966,79.95,12.91326292]
[1770837738692,3.13610213,79.966,79.941,12.50922555]
[1770837739090,3.13610213,79.966,79.95,12.91326292]
[1770837740317,3.13610213,79.976,79.96,12.91326292]
[1770837740493,3.13610213,79.976,79.95,12.91326292]
[1770837740698,3.13610213,79.967,79.93,25.42409342]
[1770837741002,3.13610213,79.959,79.923,12.51191885]
[1770837741309,3.13610213,79.959,79.93,12.91326292]
[1770837741809,3.13610213,79.959,79.94,12.91326292]
[1770837742316,3.13610213,79.959,79.93,12.91326292]
[1770837743390,3.13610213,79.959,79.931,12.51079055]
[1770837744793,3.13610213,79.957,79.922,12.51219939]
[1770837745017,3.13610213,79.957,79.93,12.91326292]
[1770837745894,3.13610213,79.955,79.918,46.56]
[1770837746100,3.13610213,79.955,79.92,12.91326292]
[1770837746315,3.13610213,79.955,79.93,12.91326292]
[1770837746620,3.13610213,79.961,79.94,12.91326292]
[1770837747916,3.13610213,79.961,79.941,12.50922555]
[1770837748104,55.0,79.965,79.941,12.50922555]
[1770837748310,58.13610213,79.965,79.941,12.50922555]
[1770837748817,3.13610213,79.973,79.95,12.91326292]
[1770837749015,3.13610213,79.973,79.941,12.59618425]
[1770837749212,3.13610213,79.973,79.95,12.91326292]
[1770837749603,3.13610213,79.973,79.941,12.50922555]
[1770837750024,3.13610213,79.971,79.95,12.91326292]
[1770837750524,3.13610213,79.971,79.94,12.91326292]
[1770837751018,3.13610213,79.969,79.931,12.51079055]
[1770837751720,3.13610213,79.969,79.931,43.78776694]
[1770837751919,3.13610213,79.969,79.94,12.91326292]
[1770837752100,12.50492112,79.969,79.941,12.50922555]
[1770837752305,3.13610213,79.968,79.941,12.50922555]
[1770837753218,3.13610213,79.968,79.94,12.91326292]
[1770837753418,3.13610213,79.968,79.922,43.79269787]
[1770837753419,0.2,79.98,79.961,0.09089192]